fUST/lending_fUST_20240104
["ID","MTS","AMOUNT","RATE_DAILY","PERIOD"]
[310072008,1704301771285,-356.54085636,0.000305,2]
[310072009,1704301771307,-391.0,0.00032357,15]
[310072010,1704301771328,-164.50453333,0.00032724,2]
[310072011,1704301771352,-8278.24,0.0003299,3]
[310072012,1704301771373,-2631.63248071,0.00033,4]
[310072013,1704301771396,-292.0,0.00033,2]
[310072014,1704301771416,-516.0,0.00033,2]
[310072015,1704301771437,-516.0,0.00033151,2]
[310072016,1704301771458,-6380.09910942,0.00034,2]
[310072017,1704301772102,-221.73638995,0.00024996,2]
[310072018,1704301772125,-622.87640777,0.00029998,2]
[310072064,1704301832488,-200.0,0.00027498,15]
[310072067,1704301832498,-1055.56983116,0.00029998,2]
[310072069,1704301832507,-19112.75169218,0.00029998,2]
[310072071,1704301832516,-1162.32333728,0.00029998,2]
[310072072,1704301832526,-280.0,0.00030248,15]
[310072074,1704301832535,-462.6176876,0.00031406,4]
[310072077,1704301832545,-154.78330338,0.00031406,5]
[310072079,1704301832554,-666.4896426,0.0003315,5]
[310072081,1704301832563,-2481.12619407,0.0003315,2]
[310072082,1704301832573,-391.0,0.00033272,15]
[310072084,1704301832583,-222.1934481,0.00033621,2]
[310072086,1704301832592,-3707.75757248,0.00033999,4]
[310072089,1704301832602,-13521.4076102,0.00034,2]
[310072092,1704301832611,-4657.66153763,0.00034,2]
[310072095,1704301832621,-1000.0,0.0003452,7]
[310072098,1704301832630,-1715.510403,0.00034521,2]
[310072101,1704301832640,-516.0,0.00034521,2]
[310072104,1704301832650,-794.90477023,0.000348,120]
[310072106,1704301832660,-3992.21,0.00034885,3]
[310072109,1704301832669,-4790.65,0.00034886,3]
[310072112,1704301832681,-6898.53,0.00034887,3]
[310072115,1704301832691,-5748.78,0.00034887,3]
[310072118,1704301832701,-936.70855282,0.00034895,3]
[310072120,1704301832711,-264.63943445,0.00034895,4]
[310072123,1704301832720,-4703.58483279,0.00034895,3]
[310072126,1704301832731,-821.31048593,0.00034895,4]
[310072128,1704301832740,-441.10944389,0.00034895,4]
[310072130,1704301832749,-6534.9223021,0.00034895,4]
[310072132,1704301832758,-1774.60609081,0.00034895,4]
[310072134,1704301832768,-480.69231037,0.00034896,4]
[310072136,1704301832777,-215.4809034,0.00034896,4]
[310072138,1704301832786,-1269.02823523,0.00034896,4]
[310072140,1704301832795,-2724.97417463,0.00034896,2]
[310072142,1704301832805,-929.16982679,0.00034896,4]
[310072144,1704301832814,-2402.17666908,0.00034897,4]
[310072146,1704301832823,-239.48878468,0.00034897,4]
[310072148,1704301832833,-25651.74103487,0.00034897,4]
[310072150,1704301832842,-28135.63094976,0.00034898,120]
[310072152,1704301832851,-6685.72921076,0.000349,2]
[310072155,1704301832876,-367.287296,0.000349,2]
[310072194,1704301838211,-1163.65429232,0.00034197,4]
[310072197,1704301838224,-1467.97818839,0.00034197,4]
[310072199,1704301838233,-2694.6802649,0.000349,2]
[310072201,1704301838244,-3491.37877549,0.000349,2]
[310072203,1704301838253,-1133.671809,0.0003498,2]
[310072204,1704301838264,-590.27084275,0.00035,2]
[310072207,1704301838274,-11136.3540509,0.00035,4]
[310072209,1704301838283,-250.0,0.00035,7]
[310072211,1704301838292,-154.75239617,0.00035,6]
[310072213,1704301838302,-1454.45537407,0.00035,14]
[310072214,1704301838311,-3538.7366841,0.00035,2]
[310072216,1704301838321,-4177.42015254,0.00035,4]
[310072218,1704301838330,-414.0,0.00035452,2]
[310072222,1704301838340,-46978.44184389,0.000355,14]
[310072223,1704301838349,-419.103927,0.00035616,120]
[310072225,1704301838358,-1715.510403,0.00035798,2]
[310072226,1704301838367,-648.13834439,0.000359,4]
[310072228,1704301838376,-292.0,0.00036,2]
[310072229,1704301838386,-518.0,0.00036247,2]
[310072230,1704301838395,-200.0,0.000366,15]
[310072231,1704301838404,-348.0,0.000366,15]
[310072232,1704301838413,-164.50453333,0.00036812,2]
[310072233,1704301838422,-1715.510403,0.00037075,2]
[310072234,1704301838432,-184.76548466,0.00037534,2]
[310072235,1704301838441,-2134.15941334,0.00037534,2]
[310072236,1704301838450,-193.27845609,0.00037539,2]
[310072237,1704301838461,-3308.23489913,0.00038,3]
[310072238,1704301838471,-29526.85613248,0.00038,10]
[310072260,1704301839664,-1893.7590732,0.00038,10]
[310072261,1704301839728,-3718.90568196,0.00038,10]
[310072262,1704301839737,-5425.67637215,0.00038,30]
[310072263,1704301839746,-4779.79120143,0.00038,30]
[310072264,1704301839756,-1715.510403,0.00038352,2]
[310072265,1704301839766,-500.0,0.00038356,2]
[310072266,1704301839775,-516.0,0.00038663,14]
[310072267,1704301839784,-464.0,0.0003874,2]
[310072268,1704301839794,-3326.08447944,0.000388,45]
[310072269,1704301839803,-20891.55085801,0.00038919,2]
[310072270,1704301839820,-41653.07564273,0.00038919,2]
[310072271,1704301839829,-1520.43392039,0.00038936,2]
[310072272,1704301839839,-456.43604811,0.00038936,2]
[310072273,1704301839848,-3000.0,0.00039,4]
[310072274,1704301839857,-150.0,0.00039301,60]
[310072275,1704301839867,-150.0,0.00039311,60]
[310072276,1704301839877,-150.0,0.00039321,60]
[310072277,1704301839886,-9558.10302987,0.00039331,2]
[310072278,1704301839895,-340.29431544,0.00039346,2]
[310072279,1704301839905,-1715.510403,0.0003963,2]
[310072280,1704301839914,-150.0,0.0003997,60]
[310072281,1704301839923,-150.0,0.0003997,60]
[310072282,1704301839932,-150.0,0.0003998,60]
[310072283,1704301839941,-150.0,0.0003998,60]
[310072284,1704301839950,-3950.17133981,0.00039989,2]
[310072285,1704301839960,-4031.97114424,0.0003999,4]
[310072286,1704301839968,-150.0,0.0003999,60]
[310072287,1704301839977,-150.0,0.0003999,60]
[310072288,1704301839986,-1278.30335464,0.0004,4]
[310072289,1704301839994,-1695.20922144,0.0004,30]
[310072290,1704301840004,-1787.65718992,0.0004,14]
[310072291,1704301840013,-10000.0,0.0004,15]
[310072292,1704301840022,-870.2213642,0.0004,2]
[310072293,1704301840031,-371.04881992,0.0004,4]
[310072294,1704301840041,-2464.42961244,0.0004,30]
[310072295,1704301840050,-200.0,0.0004026,30]
[310072296,1704301840059,-200.0,0.0004026,30]
[310072297,1704301840068,-368.0,0.0004026,30]
[310072298,1704301840078,-164.50453333,0.000409,2]
[310072299,1704301840087,-3238.01239686,0.00040919,2]
[310072300,1704301840096,-500.0,0.00040999,2]
[310072301,1704301840105,-500.0,0.00040999,2]
[310072302,1704301840114,-159.56317368,0.00040999,2]
[310072303,1704301840125,-229.51336575,0.00040999,2]
[310072304,1704301840135,-16955.18186011,0.00041,10]
[310072305,1704301840144,-1000.0,0.00041,41]
[310072306,1704301840153,-516.0,0.00041079,14]
[310072307,1704301840162,-516.0,0.00041425,90]
[310072309,1704301840171,-419.103927,0.00041553,120]
[310072311,1704301840180,-160.21132361,0.00041591,2]
[310072312,1704301840189,-13904.99350998,0.000417,5]
[310072313,1704301840198,-912.79105878,0.00041777,4]
[310072314,1704301840209,-152.15,0.00041793,7]
[310072315,1704301840219,-150.0,0.00041803,7]
[310072316,1704301840229,-150.0,0.00041813,7]
[310072317,1704301840239,-383.39998764,0.00041819,4]
[310072318,1704301840249,-638.44894353,0.00041819,4]
[310072319,1704301840258,-155.97215406,0.00041819,4]
[310072320,1704301840267,-158.01196814,0.00041819,4]
[310072321,1704301840277,-246.57787243,0.00041819,4]
[310072322,1704301840287,-154.84515485,0.00041819,4]
[310072323,1704301840296,-155.4642419,0.0004182,4]
[310072324,1704301840305,-478.36848675,0.00041821,3]
[310072325,1704301840315,-383.32525908,0.00041821,4]
[310072326,1704301840326,-496.08107459,0.00041821,4]
[310072327,1704301840335,-166.2793413,0.00041821,2]
[310072329,1704301840344,-156.69710926,0.00041821,4]
[310072330,1704301840353,-5015.20486306,0.00041821,4]
[310072331,1704301840363,-6820.04058781,0.00041821,4]
[310072332,1704301840372,-5246.86679064,0.00041821,4]
[310072333,1704301840381,-434.2870284,0.00041821,4]
[310072334,1704301840391,-293.08790082,0.00041821,4]
[310072335,1704301840400,-154.84515485,0.00041821,4]
[310072337,1704301840409,-166.18669559,0.00041821,4]
[310072338,1704301840418,-222.23814354,0.00041823,4]
[310072339,1704301840426,-5000.0,0.00041823,20]
[310072340,1704301840436,-467.46613374,0.00041823,2]
[310072341,1704301840444,-2789.35057901,0.00041823,4]
[310072342,1704301840454,-155.16578643,0.00041823,2]
[310072344,1704301840465,-281.91464801,0.00041823,3]
[310072345,1704301840474,-1588.6846698,0.00041823,5]
[310072347,1704301840484,-205.35493688,0.00041823,5]
[310072349,1704301840493,-1200.0,0.00041823,4]
[310072351,1704301840502,-4033.54542916,0.00041823,4]
[310072352,1704301840511,-154.78330338,0.00041823,4]
[310072353,1704301840520,-211.8,0.00041827,2]
[310072354,1704301840530,-1511.71554035,0.00041852,7]
[310072355,1704301840539,-150.0,0.000419,2]
[310072356,1704301840549,-4347.76685642,0.000419,14]
[310072357,1704301840559,-2516.72816292,0.00041974,7]
[310072358,1704301840624,-384.975788,0.00042,4]
[310072359,1704301840641,-386.568925,0.00042,4]
[310072360,1704301840650,-1892.12442306,0.00042,30]
[310072361,1704301840659,-21235.54107783,0.00042,2]
[310072362,1704301840672,-11051.32804776,0.00042,2]
[310072363,1704301840681,-1452.65700144,0.00042,10]
[310072364,1704301840690,-5000.0,0.00042111,15]
[310072365,1704301840700,-514.0,0.00042192,4]
[310072366,1704301840711,-1327.18059356,0.000422,30]
[310072367,1704301840720,-1000.0,0.00042463,14]
[310072368,1704301840729,-1000.0,0.00042476,14]
[310072369,1704301840739,-1999.0010419,0.00042546,120]
[310072370,1704301840749,-153.0,0.00042822,2]
[310072371,1704301840758,-151.01131424,0.00042999,60]
[310072372,1704301840767,-4808.08580524,0.00043,7]
[310072373,1704301840777,-1000.0,0.00043,43]
[310072374,1704301840787,-2705.58,0.00043,120]
[310072375,1704301840796,-3848.88859893,0.00043,5]
[310072376,1704301840805,-155.0,0.00043,2]
[310072377,1704301840815,-2509.8984726,0.00043111,30]
[310072378,1704301840824,-174.684876,0.00043124,2]
[310072379,1704301840834,-150.0,0.00043199,60]
[310072380,1704301840843,-516.0,0.00043496,90]
[310072381,1704301840852,-159.383762,0.0004352,30]
[310072382,1704301840866,-153.0,0.00043534,2]
[310072383,1704301840875,-301.50219196,0.00043648,4]
[310072384,1704301840885,-5000.0,0.00043663,15]
[310072385,1704301840895,-220.41021947,0.00043687,5]
[310072386,1704301840904,-5000.0,0.00043704,15]
[310072387,1704301840914,-150.0,0.000438,7]
[310072388,1704301840923,-1000.0,0.000438,14]
[310072389,1704301840933,-1000.0,0.00043806,14]
[310072390,1704301840942,-1000.0,0.0004381,14]
[310072391,1704301840951,-1000.0,0.00043831,14]
[310072392,1704301840961,-250.0,0.00043835,10]
[310072393,1704301840970,-550.0,0.00043835,7]
[310072394,1704301840979,-1000.0,0.00043838,15]
[310072395,1704301840989,-1000.0,0.00043839,15]
[310072396,1704301840998,-29945.69705227,0.00043999,30]
[310072397,1704301841007,-174.11,0.00043999,7]
[310072398,1704301841017,-492.52138762,0.00043999,4]
[310072399,1704301841026,-625.92634891,0.00043999,4]
[310072400,1704301841035,-429.55605903,0.00043999,4]
[310072401,1704301841044,-500.0,0.00043999,4]
[310072402,1704301841053,-500.0,0.00043999,4]
[310072403,1704301841063,-500.0,0.00043999,4]
[310072404,1704301841072,-210.50122612,0.00043999,4]
[310072405,1704301841082,-494.67238026,0.00043999,7]
[310072406,1704301841091,-547.13502431,0.00043999,7]
[310072407,1704301841100,-275.36172513,0.00044,4]
[310072408,1704301841110,-22566.3706461,0.00044,7]
[310072409,1704301841121,-61315.88519292,0.00044,2]
[310072410,1704301841130,-167.77,0.00044,2]
[310072411,1704301841140,-320.66097378,0.00044,2]
[310072412,1704301841149,-550.0,0.00044109,7]
[310072413,1704301841159,-1500.0,0.00044274,7]
[310072414,1704301841168,-200.0,0.00044285,30]
[310072416,1704301841178,-200.0,0.00044285,30]
[310072418,1704301841187,-200.0,0.00044285,30]
[310072420,1704301841196,-200.0,0.00044285,30]
[310072421,1704301841205,-275.0,0.00044285,30]
[310072422,1704301841215,-155.0,0.0004437,2]
[310072423,1704301841223,-550.0,0.00044383,7]
[310072424,1704301841232,-150.0,0.00044407,2]
[310072425,1704301841242,-200.751,0.00044407,2]
[310072426,1704301841253,-3108.10795498,0.000446,3]
[310072427,1704301841263,-550.0,0.00044657,7]
[310072428,1704301841272,-177.0,0.00044827,2]
[310072429,1704301841281,-231.7699577,0.00044834,4]
[310072431,1704301841290,-1288.04349896,0.00044896,7]
[310072432,1704301841299,-153.63026753,0.00044898,14]
[310072433,1704301841308,-153.63026753,0.00044898,14]
[310072434,1704301841317,-153.63026753,0.00044898,14]
[310072435,1704301841327,-153.63026753,0.00044898,14]
[310072436,1704301841338,-153.63026753,0.00044898,14]
[310072438,1704301841348,-153.63026753,0.00044898,14]
[310072440,1704301841357,-153.63026753,0.00044898,14]
[310072441,1704301841366,-153.63026753,0.00044898,14]
[310072442,1704301841375,-153.63026753,0.00044898,14]
[310072443,1704301841384,-153.63026753,0.00044898,14]
[310072444,1704301841393,-153.63026753,0.00044898,14]
[310072445,1704301841402,-153.63026753,0.00044898,14]
[310072446,1704301841411,-153.63,0.00044898,14]
[310072447,1704301841420,-399.43869558,0.00044898,14]
[310072448,1704301841430,-399.43869558,0.00044898,14]
[310072449,1704301841439,-399.43869558,0.00044898,14]
[310072450,1704301841447,-399.43869558,0.00044898,14]
[310072451,1704301841457,-399.43869558,0.00044898,14]
[310072452,1704301841467,-399.43869558,0.00044898,14]
[310072453,1704301841476,-399.43869558,0.00044898,14]
[310072454,1704301841486,-399.43869558,0.00044898,14]
[310072455,1704301841497,-399.43869558,0.00044898,14]
[310072456,1704301841506,-399.43869558,0.00044898,14]
[310072457,1704301841515,-399.43869558,0.00044898,14]
[310072458,1704301841525,-399.43869558,0.00044898,14]
[310072459,1704301841534,-399.43869558,0.00044898,14]
[310072460,1704301841543,-399.43869558,0.00044898,14]
[310072461,1704301841552,-399.43869558,0.00044898,14]
[310072462,1704301841562,-399.43869558,0.00044898,14]
[310072463,1704301841571,-399.43869558,0.00044898,14]
[310072464,1704301841580,-399.43869558,0.00044898,14]
[310072465,1704301841590,-7215.82199052,0.000449,120]
[310072466,1704301841600,-7000.0,0.000449,120]
[310072467,1704301841609,-641.66291096,0.00044931,7]
[310072468,1704301841618,-2521.0,0.00044959,14]
[310072469,1704301841628,-4021.0,0.00044959,14]
[310072470,1704301841637,-154.84515485,0.00044994,4]
[310072471,1704301841647,-154.84515485,0.00044994,4]
[310072472,1704301841658,-586.04748878,0.00044994,4]
[310072473,1704301841668,-154.84515485,0.00044994,2]
[310072474,1704301841679,-12090.75444544,0.00044994,2]
[310072475,1704301841688,-11622.21827988,0.00044995,2]
[310072476,1704301841697,-162.4738658,0.00044996,4]
[310072477,1704301841706,-1891.93407361,0.00044996,4]
[310072478,1704301841718,-17205.97234256,0.00044996,4]
[310072479,1704301841827,-3326.84,0.00038909,3]
[310072480,1704301841837,-213.68602501,0.00044996,4]
[310072522,1704301843280,-8817.7101486,0.00044996,4]
[310072524,1704301843290,-2366.79522929,0.00044997,4]
[310072525,1704301843300,-10314.09113312,0.00044998,120]
[310072556,1704301846241,-12985.79897279,0.00044995,4]
[310072557,1704301846254,-13380.46418723,0.00044995,4]
[310072558,1704301846264,-328.74789216,0.00044995,4]
[310072559,1704301846274,-14459.1290319,0.00044998,120]
[310072560,1704301846283,-1576.20853557,0.00044998,4]
[310072561,1704301846292,-154.84515485,0.00044998,4]
[310072562,1704301846302,-4803.68452735,0.00044998,4]
[310072563,1704301846311,-155.77527291,0.00044998,4]
[310072564,1704301846320,-680.43804704,0.00044998,4]
[310072565,1704301846329,-155.19744078,0.00044998,4]
[310072566,1704301846338,-3386.19222709,0.00044998,2]
[310072567,1704301846348,-155.13794741,0.00044998,4]
[310072568,1704301846357,-155.05448458,0.00044998,4]
[310072569,1704301846366,-23875.69999384,0.00044998,4]
[310072570,1704301846376,-207.52849635,0.00044998,4]
[310072571,1704301846385,-1377.09550969,0.00044998,4]
[310072572,1704301846395,-1307.25358205,0.00044998,4]
[310072573,1704301846405,-500.0,0.00044999,7]
[310072574,1704301846415,-211.08059469,0.00044999,7]
[310072575,1704301846424,-184.09545387,0.00044999,7]
[310072576,1704301846434,-500.0,0.00044999,7]
[310072577,1704301846443,-469.44476168,0.00044999,7]
[310072578,1704301846452,-282.87591959,0.00044999,7]
[310072579,1704301846462,-3629.71237,0.00044999,4]
[310072580,1704301846471,-18052.67149776,0.00045,7]
[310072581,1704301846480,-46603.45936744,0.00045,120]
[310072582,1704301847022,-156.10822545,0.00045,120]
[310072585,1704301956486,-156.0,0.00029997,2]
[310072592,1704302338844,-4703.58483279,0.0002505,2]
[310072593,1704302338866,-5076.05878035,0.0002505,2]
[310072594,1704302338894,-10477.01854936,0.00025051,2]
[310072595,1704302338916,-2990.08384051,0.00025051,2]
[310072596,1704302338938,-1734.34211695,0.00025051,2]
[310072597,1704302338959,-268.73332704,0.00025051,2]
[310072598,1704302338982,-2704.45519417,0.00025051,2]
[310072599,1704302339004,-3732.74533379,0.00025051,2]
[310072600,1704302339025,-154.78330338,0.00025051,2]
[310072601,1704302339046,-873.72208253,0.00025051,2]
[310072602,1704302339067,-559.68125324,0.00025051,2]
[310072603,1704302339091,-641.96499442,0.00025051,2]
[310072604,1704302339197,-7853.18847264,0.00025051,2]
[310072605,1704302339219,-2631.68489228,0.00025052,2]
[310072606,1704302339240,-293.96606539,0.00025052,2]
[310072607,1704302339261,-1171.19863995,0.00025052,2]
[310072608,1704302339282,-1341.78832121,0.00025052,2]
[310072609,1704302354558,365.98770786,0.0002,2]
[310072611,1704302384754,533.38069631,0.0002,2]
[310072612,1704302387828,18839.45820726,0.0002,2]
[310072613,1704302388045,731.10315085,0.0002,2]
[310072614,1704302389638,322.38366746,0.00019999,2]
[310072615,1704302391186,-555.49918592,0.00024042,2]
[310072616,1704302391403,-11.33671808,0.00024042,2]
[310072618,1704302395162,685.60348625,0.0002,2]
[310072619,1704302395294,154.78330338,0.0002,2]
[310072620,1704302396514,9782.463016,0.00028979,120]
[310072623,1704302397958,-524.84202363,0.00024041,2]
[310072624,1704302397991,-4475.15797637,0.00024051,2]
[310072625,1704302398232,-5000.0,0.00024051,2]
[310072626,1704302398299,-5000.0,0.00024051,2]
[310072627,1704302398360,-5000.0,0.00024051,2]
[310072628,1704302398569,-5000.0,0.00024051,2]
[310072629,1704302398642,533.38069631,0.0002,2]
[310072630,1704302398783,-424.84202363,0.00024051,2]
[310072631,1704302401851,12995.51391198,0.0002,2]
[310072632,1704302401878,5843.94429528,0.0002,2]
[310072636,1704302404042,731.10315085,0.0002,2]
[310072641,1704302411110,685.60348625,0.0002,2]
[310072642,1704302411214,155.76608,0.0002,2]
[310072644,1704302419829,18839.45820726,0.0002,2]
[310072645,1704302420123,685.5279617,0.0002,2]
[310072646,1704302422650,533.38069631,0.0002,2]
[310072647,1704302429117,685.60348625,0.0002,2]
[310072651,1704302438641,533.38069631,0.0002,2]
[310072653,1704302443642,10265.97286371,0.0002,2]
[310072654,1704302443834,5294.74084595,0.0002,2]
[310072655,1704302445127,685.60348625,0.0002,2]
[310072656,1704302448581,154.78330338,0.0002,2]
[310072657,1704302457642,3319.30362236,0.0002,2]
[310072658,1704302458645,533.38069631,0.0002,2]
[310072660,1704302465128,685.60348625,0.0002,2]
[310072661,1704302467650,154.78330338,0.0002,2]
[310072662,1704302474645,533.38069631,0.0002,2]
[310072663,1704302481134,685.60348625,0.0002,2]
[310072664,1704302484082,154.78330338,0.0002,2]
[310072665,1704302494663,533.38069631,0.0002,2]
[310072666,1704302499108,577.53907218,0.0002,2]
[310072668,1704302502590,154.78330338,0.0002,2]
[310072669,1704302516662,533.38069631,0.0002,2]
[310072670,1704302536673,288.7494969,0.0002,2]
[310072671,1704302548693,9607.0,0.00023,2]
[310072672,1704302625662,2189.3695874,0.00022487,2]
[310072673,1704302647311,1819.06283426,0.00023,2]
[310072674,1704302648151,300.0,0.00023,2]
[310072675,1704302652692,2076.07378809,0.00023,2]
[310072676,1704302661312,1817.29215464,0.00023,2]
[310072677,1704302662154,300.0,0.00023,2]
[310072678,1704302666258,873.72208253,0.00022999,2]
[310072679,1704302670774,2076.07378809,0.00023,2]
[310072680,1704302684148,300.0,0.00023,2]
[310072681,1704302686768,2076.07378809,0.00023,2]
[310072682,1704302706157,300.0,0.00023,2]
[310072684,1704302710686,1817.79099058,0.00023,2]
[310072685,1704302719402,1157.2209819,0.00022677,2]
[310072686,1704302761480,396.3207871,0.00022446,2]
[310072693,1704302784490,275.96964,0.00022434,2]
[310072694,1704302784842,275.96964,0.00022434,2]
[310072695,1704302785426,275.96964,0.00022434,2]
[310072697,1704302785758,275.96964,0.00022434,2]
[310072698,1704302786118,275.96964,0.00022434,2]
[310072730,1704302830362,283.417952,0.00022402,2]
[310072734,1704302842110,-1224.14430232,0.00023318,2]
[310072768,1704302864211,1538.497295,0.00022318,2]
[310072770,1704302877401,628.8587347,0.00022312,2]
[310072771,1704302879517,184.12853879,0.00022267,2]
[310072772,1704302897203,174.684876,0.00022223,2]
[310072773,1704302907132,24900.0,0.00022305,2]
[310072775,1704302946103,-5915.26,0.0002328,3]
[310072776,1704302946126,-15856.05933973,0.00023288,2]
[310072777,1704302946146,-154.78330338,0.00023288,2]
[310072778,1704302946168,-5076.05878035,0.00023288,2]
[310072779,1704302946189,-2997.40556678,0.00023289,2]
[310072780,1704302946211,-2990.08384051,0.00023289,2]
[310072781,1704302946232,-924.18644533,0.00023289,2]
[310072782,1704302946254,-235.42779406,0.00023289,2]
[310072783,1704302946277,-974.55748819,0.0002329,2]
[310072784,1704302946298,-321.94449774,0.0002329,2]
[310072785,1704302946321,-21945.68594393,0.0002329,2]
[310072786,1704302946452,-28177.01406273,0.0002329,2]
[310072787,1704302957100,-559.68125324,0.00023279,2]
[310072788,1704302957124,-322.38366746,0.00023279,2]
[310072789,1704302957143,-178.24808117,0.00023279,2]
[310072790,1704302957163,-3943.5,0.00023281,3]
[310072791,1704302957183,-1464.41511106,0.00023287,2]
[310072792,1704302957202,-2909.87708707,0.00023287,2]
[310072793,1704302959117,-822.86824672,0.00023287,2]
[310072794,1704302959138,-520.2185,0.00023288,2]
[310072795,1704302959160,-190.72300866,0.00023288,2]
[310072796,1704302959180,-317.52279024,0.00023288,2]
[310072797,1704302959199,-154.78330338,0.00023288,2]
[310072798,1704302959219,-7853.18847264,0.00023289,2]
[310072799,1704302959238,-4803.68452735,0.00023289,2]
[310072800,1704302959260,-20831.85137104,0.00023289,2]
[310072801,1704302959279,-28128.27365115,0.0002329,2]
[310072802,1704302959299,-10410.41012882,0.0002329,2]
[310072803,1704302962211,-154.78330338,0.00023278,4]
[310072804,1704302962233,-293.96606539,0.00023278,2]
[310072805,1704302962254,-1734.34211695,0.00023278,2]
[310072806,1704302962275,-944.51958651,0.00023278,2]
[310072807,1704302962296,-1034.68861777,0.00023278,2]
[310072808,1704302964099,-136.51002218,0.00023278,2]
[310072809,1704302964128,-1019.46116191,0.00023278,2]
[310072810,1704302964150,-212.61910187,0.00023286,2]
[310072811,1704302964173,-154.78330338,0.00023286,2]
[310072812,1704302964194,-5944.69403083,0.00023287,2]
[310072813,1704302964213,-642.78856115,0.00023288,2]
[310072814,1704302964233,-15703.87626343,0.00023288,2]
[310072815,1704302964253,-5076.05878035,0.00023289,2]
[310072816,1704302964273,-321.94449774,0.00023289,2]
[310072817,1704302964293,-1721.07220697,0.00023289,2]
[310072818,1704302964314,-13491.90275509,0.0002329,2]
[310072819,1704302966775,974.55748819,0.00020959,2]
[310072820,1704302968106,-859.47841956,0.00023277,2]
[310072821,1704302968129,-590.516407,0.00023277,2]
[310072822,1704302968152,-5455.18,0.00023281,3]
[310072823,1704302968175,-273.13997523,0.00023285,2]
[310072824,1704302968195,-235.42779406,0.00023289,2]
[310072825,1704302968217,-2475.127456,0.0002329,2]
[310072826,1704302968237,-164.65816911,0.00023291,2]
[310072827,1704302968258,-1019.46116191,0.00023291,2]
[310072828,1704302968278,-641.96499442,0.00023291,2]
[310072829,1704302968299,-36770.35479684,0.00023291,2]
[310072830,1704302968319,-466.12469227,0.00023291,2]
[310072831,1704302968340,-7544.16505711,0.00023291,2]
[310072832,1704302968361,-4908.91880815,0.00023291,2]
[310072833,1704302968383,-19632.2086524,0.00023291,2]
[310072834,1704302968405,-154.78330338,0.00023292,2]
[310072835,1704302968426,-1238.07238046,0.00023295,2]
[310072836,1704302968448,-285.30351426,0.00023296,2]
[310072837,1704302968470,-4431.99090233,0.00023297,2]
[310072838,1704302968491,-223.69711736,0.00023311,2]
[310072839,1704302968513,-154.84515485,0.00023311,2]
[310072840,1704302968534,-4872.72208118,0.00023311,2]
[310072841,1704302968560,-39.99216212,0.00023321,2]
[310072842,1704302969096,-675.8919533,0.00023285,2]
[310072843,1704302969119,-873.72208253,0.00023285,2]
[310072844,1704302969142,-128.29394398,0.00023321,2]
[310072845,1704302969165,-172.13421518,0.00023321,2]
[310072846,1704302969188,-168.28610609,0.00023324,2]
[310072847,1704302969211,-168.28610609,0.00023327,2]
[310072848,1704302969232,-168.28610609,0.00023329,2]
[310072849,1704302969254,-168.28610609,0.00023332,2]
[310072850,1704302969274,-451.07921998,0.00023419,2]
[310072851,1704302969294,-451.07921998,0.00023419,2]
[310072852,1704302969314,-451.07921998,0.00023419,2]
[310072853,1704302969334,-451.07921998,0.00023419,2]
[310072854,1704302969355,-451.07921998,0.00023419,2]
[310072855,1704302969375,-2097.15281013,0.00023497,2]
[310072856,1704302969396,-1051.21541603,0.00023497,7]
[310072857,1704302969416,-2067.23046819,0.00023497,2]
[310072858,1704302969438,-468.93451344,0.00023497,2]
[310072859,1704302969459,-166.666666,0.00023503,2]
[310072860,1704302969479,-250.0,0.00023898,2]
[310072861,1704302969498,-166.666666,0.00024144,2]
[310072862,1704302969527,-166.666666,0.00024785,2]
[310072863,1704302969554,-154.78330338,0.00025,2]
[310072864,1704302969578,-180.04266148,0.00025041,2]
[310072865,1704302969600,-1616.01091184,0.00025328,2]
[310072866,1704302969621,-929.16982679,0.00025328,2]
[310072867,1704302969643,-2117.83055764,0.00025328,2]
[310072868,1704302969665,-3590.73127309,0.00025329,2]
[310072869,1704302969789,-166.666666,0.00025425,2]